[Event "World Senior chT-65 2019"]
[Site "Rhodes"]
[Date "2019.04.20"]
[Round "5.20"]
[White "Hewson, Brian W R"]
[Black "Buchal, Stephan"]
[Result "1/2-1/2"]
[ECO "E63"]
[WhiteElo "2004"]
[BlackElo "2283"]
[Annotator "NA"]
[PlyCount "46"]
[EventDate "2019.04.16"]
[EventType "team-tourn"]
[EventCountry "GRE"]
[SourceTitle "playchess.com"]
[Source "ChessBase"]
[SourceQuality "1"]
[WhiteTeam "England"]
[BlackTeam "Germany"]
[WhiteTeamCountry "ENG"]
[BlackTeamCountry "GER"]
[TimeControl "40/5400+30:1800+30"]

1. d4 {[%emt 0:00:00]} d6 {[%emt 0:00:00]} 2. Nf3 {[%emt 0:00:00]} g6 {[%emt 0:00:02]} 3. g3 {[%emt 0:00:00]} Bg7 {[%emt 0:00:11]} 4. Bg2 {[%emt 0:00:03]} Nf6 {[%emt 0:00:11]} 5. O-O {[%emt 0:00:10]} O-O {[%emt 0:00:05]} 6. c4 {[%emt 0:01:09]} Nc6 {[%emt 0:00:17]} 7. Nc3 {[%emt 0:09:24]} a6 {[%emt 0:01:00]} 8. a4 {[%emt 0:01:08]} a5 {[%emt 0:02:11]} 9. d5 {[%emt 0:12:10]} Nb4 {[%emt 0:00:34]} 10. Nd4 {[%emt 0:04:07]} e5 {[%emt 0:09:54]} 11. dxe6 {[%emt 0:04:25]} fxe6 {[%emt 0:00:36]} 12. h3 {[%emt 0:03:51]} c6 {[%emt 0:12:16]} 13. e4 {[%emt 0:01:54]} e5 {[%emt 0:09:15]} 14. Nc2 {[%emt 0:01:16]} Be6 {[%emt 0:03:10]} 15. b3 {[%emt 0:08:13]} Qc7 {[%emt 0:15:55]} 16. Ba3 {[%emt 0:02:09]} Nxc2 {[%emt 0:01:38]} 17. Qxc2 {[%emt 0:00:12]} Nd7 {[%emt 0:00:45]} 18. Rad1 {[%emt 0:01:58]} Nc5 {[%emt 0:00:17]} 19. Bxc5 {[%emt 0:09:22]} dxc5 {[%emt 0:00:03]} 20. Rd3 {[%emt 0:00:28]} Rf7 {[%emt 0:09:01]} 21. Rfd1 {[%emt 0:01:57]} Raf8 {[%emt 0:03:31]} 22. f3 {[%emt 0:02:32]} Bh6 {[%emt 0:02:44]} 23. Kh2 {[%emt 0:04:12]} Qc8 {[%emt 0:09:36]} 1/2-1/2

[Event "World Senior chT-65 2019"]
[Site "Rhodes"]
[Date "2019.04.20"]
[Round "5.22"]
[White "Seret, Jean-Luc"]
[Black "Holst, Per"]
[Result "1/2-1/2"]
[ECO "A08"]
[WhiteElo "2332"]
[BlackElo "2150"]
[Annotator "NA"]
[PlyCount "46"]
[EventDate "2019.04.16"]
[EventType "team-tourn"]
[EventCountry "GRE"]
[SourceTitle "playchess.com"]
[Source "ChessBase"]
[SourceQuality "1"]
[WhiteTeam "France"]
[BlackTeam "Denmark"]
[WhiteTeamCountry "FRA"]
[BlackTeamCountry "DEN"]
[TimeControl "40/5400+30:1800+30"]

1. e4 {[%emt 0:00:05]} e6 {[%emt 0:00:00]} 2. d3 {[%emt 0:02:13]} d5 {[%emt 0:00:00]} 3. Nd2 {[%emt 0:00:26]} c5 {[%emt 0:00:06]} 4. g3 {[%emt 0:00:33]} Nc6 {[%emt 0:01:08]} 5. Bg2 {[%emt 0:00:08]} Nge7 {[%emt 0:00:12]} 6. Ngf3 {[%emt 0:01:15]} g6 {[%emt 0:00:14]} 7. O-O {[%emt 0:00:21]} Bg7 {[%emt 0:00:06]} 8. Re1 {[%emt 0:01:02]} b6 {[%emt 0:00:49]} 9. exd5 {[%emt 0:05:06]} Nxd5 {[%emt 0:05:26]} 10. c3 {[%emt 0:04:57]} O-O {[%emt 0:04:00]} 11. Nc4 {[%emt 0:00:46]} Bb7 {[%emt 0:05:52]} 12. a4 {[%emt 0:00:46]} Qc7 {[%emt 0:04:06]} 13. Qb3 {[%emt 0:00:52]} h6 {[%emt 0:06:02]} 14. a5 {[%emt 0:01:33]} Rad8 {[%emt 0:02:24]} 15. axb6 {[%emt 0:01:51]} axb6 {[%emt 0:00:21]} 16. Nfd2 {[%emt 0:01:24]} Nce7 {[%emt 0:03:54]} 17. Na3 {[%emt 0:17:33]} Ra8 {[%emt 0:18:22]} 18. Nb5 {[%emt 0:00:00]} Qd7 {[%emt 0:01:52]} 19. Rxa8 {[%emt 0:00:00]} Rxa8 {[%emt 0:05:47]} 20. Nc4 {[%emt 0:00:00]} Bc6 {[%emt 0:03:57]} 21. Nba3 {[%emt 0:00:00]} Qc7 {[%emt 0:05:20]} 22. Nb5 {[%emt 0:00:00]} Qd7 {[%emt 0:00:58]} 23. Nba3 {[%emt 0:00:00]} Qc7 {[%emt 0:00:10]} 1/2-1/2

[Event "World Senior chT-65 2019"]
[Site "Rhodes"]
[Date "2019.04.20"]
[Round "5.23"]
[White "Hvenekilde, Jorgen"]
[Black "Sharif, Mehrshad"]
[Result "0-1"]
[ECO "D02"]
[WhiteElo "2046"]
[BlackElo "2331"]
[Annotator "NA"]
[PlyCount "78"]
[EventDate "2019.04.16"]
[EventType "team-tourn"]
[EventCountry "GRE"]
[SourceTitle "playchess.com"]
[Source "ChessBase"]
[SourceQuality "1"]
[WhiteTeam "Denmark"]
[BlackTeam "France"]
[WhiteTeamCountry "DEN"]
[BlackTeamCountry "FRA"]
[TimeControl "40/5400+30:1800+30"]

1. d4 {[%emt 0:00:00]} d5 {[%emt 0:00:00]} 2. Nf3 {[%emt 0:00:00]} Nf6 {[%emt 0:00:02]} 3. Bf4 {[%emt 0:00:06]} c5 {[%emt 0:00:26]} 4. e3 {[%emt 0:00:30]} Nc6 {[%emt 0:00:15]} 5. c3 {[%emt 0:00:57]} Qb6 {[%emt 0:00:27]} 6. Qb3 {[%emt 0:03:24]} c4 {[%emt 0:00:25]} 7. Qxb6 {[%emt 0:00:16]} axb6 {[%emt 0:00:14]} 8. Nfd2 {[%emt 0:21:33]} Bf5 {[%emt 0:12:33]} 9. f3 {[%emt 0:02:19]} e6 {[%emt 0:00:47]} 10. e4 {[%emt 0:03:54]} Bg6 {[%emt 0:00:26]} 11. Bg5 {[%emt 0:07:22]} Be7 {[%emt 0:07:01]} 12. Bxf6 {[%emt 0:00:54]} Bxf6 {[%emt 0:00:29]} 13. Na3 {[%emt 0:00:23]} O-O {[%emt 0:01:47]} 14. Nc2 {[%emt 0:01:03]} b5 {[%emt 0:00:21]} 15. a3 {[%emt 0:00:40]} e5 {[%emt 0:03:51]} 16. Ne3 {[%emt 0:05:11]} dxe4 {[%emt 0:04:23]} 17. d5 {[%emt 0:00:59]} Na5 {[%emt 0:04:14]} 18. Nxe4 {[%emt 0:06:28]} Bxe4 {[%emt 0:00:42]} 19. fxe4 {[%emt 0:00:14]} Nb3 {[%emt 0:00:10]} 20. Rd1 {[%emt 0:00:42]} Nc5 {[%emt 0:00:12]} 21. Be2 {[%emt 0:05:44]} Nxe4 {[%emt 0:00:37]} 22. O-O {[%emt 0:00:22]} Be7 {[%emt 0:15:35]} 23. Bf3 {[%emt 0:03:45]} Nd6 {[%emt 0:00:23]} 24. g4 {[%emt 0:04:12]} g6 {[%emt 0:02:25]} 25. Bg2 {[%emt 0:03:53]} Bg5 {[%emt 0:02:12]} 26. Rfe1 {[%emt 0:00:23]} Rae8 {[%emt 0:01:32]} 27. Ra1 {[%emt 0:02:32]} Bxe3+ {[%emt 0:00:55]} 28. Rxe3 {[%emt 0:00:15]} f5 {[%emt 0:00:16]} 29. gxf5 {[%emt 0:01:03]} gxf5 {[%emt 0:00:16]} 30. a4 {[%emt 0:05:01]} bxa4 {[%emt 0:00:58]} 31. Rxa4 {[%emt 0:00:16]} e4 {[%emt 0:01:16]} 32. Bh3 {[%emt 0:01:32]} Re5 {[%emt 0:26:42]} 33. Ra5 {[%emt 0:05:20]} Kg7 {[%emt 0:00:10]} 34. Rc5 {[%emt 0:00:26]} Rc8 {[%emt 0:01:31]} 35. Rxc8 {[%emt 0:01:13]} Nxc8 {[%emt 0:00:21]} 36. Bf1 {[%emt 0:05:14]} Nd6 {[%emt 0:00:18]} 37. Rg3+ {[%emt 0:00:08]} Kf6 {[%emt 0:00:28]} 38. Rh3 {[%emt 0:00:08]} Rxd5 {[%emt 0:00:14]} 39. Rxh7 {[%emt 0:00:44]} Rd2 {[%emt 0:00:33]} 0-1

[Event "World Senior chT-65 2019"]
[Site "Rhodes"]
[Date "2019.04.20"]
[Round "5.24"]
[White "Giffard, Nicolas"]
[Black "Grevlund, Per"]
[Result "1-0"]
[ECO "D45"]
[WhiteElo "2252"]
[BlackElo "1998"]
[Annotator "NA"]
[PlyCount "83"]
[EventDate "2019.04.16"]
[EventType "team-tourn"]
[EventCountry "GRE"]
[SourceTitle "playchess.com"]
[Source "ChessBase"]
[SourceQuality "1"]
[WhiteTeam "France"]
[BlackTeam "Denmark"]
[WhiteTeamCountry "FRA"]
[BlackTeamCountry "DEN"]
[TimeControl "40/5400+30:1800+30"]

1. Nf3 {[%emt 0:00:00]} Nf6 {[%emt 0:00:00]} 2. c4 {[%emt 0:00:00]} e6 {[%emt 0:00:00]} 3. Nc3 {[%emt 0:00:26]} d5 {[%emt 0:00:13]} 4. d4 {[%emt 0:00:23]} c6 {[%emt 0:00:31]} 5. e3 {[%emt 0:00:28]} Be7 {[%emt 0:00:23]} 6. Qc2 {[%emt 0:02:42]} O-O {[%emt 0:01:07]} 7. Bd2 {[%emt 0:01:49]} Re8 {[%emt 0:01:17]} 8. e4 {[%emt 0:03:29]} dxe4 {[%emt 0:03:09]} 9. Nxe4 {[%emt 0:00:08]} Nbd7 {[%emt 0:00:43]} 10. Bd3 {[%emt 0:08:06]} Nxe4 {[%emt 0:01:00]} 11. Bxe4 {[%emt 0:00:06]} Nf6 {[%emt 0:00:49]} 12. Bd3 {[%emt 0:02:52]} c5 {[%emt 0:03:15]} 13. dxc5 {[%emt 0:02:57]} Bxc5 {[%emt 0:01:15]} 14. b4 {[%emt 0:00:20]} Be7 {[%emt 0:04:14]} 15. O-O {[%emt 0:00:39]} h6 {[%emt 0:07:56]} 16. a4 {[%emt 0:11:11]} b6 {[%emt 0:05:46]} 17. a5 {[%emt 0:00:44]} Bb7 {[%emt 0:03:15]} 18. Ne5 {[%emt 0:06:04]} Qc7 {[%emt 0:03:25]} 19. Rfe1 {[%emt 0:01:20]} Nd7 {[%emt 0:05:09]} 20. Nxd7 {[%emt 0:01:15]} Qxd7 {[%emt 0:00:05]} 21. a6 {[%emt 0:00:31]} Bc6 {[%emt 0:10:56]} 22. b5 {[%emt 0:06:22]} Rad8 {[%emt 0:00:09]} 23. Bh7+ {[%emt 0:00:16]} Kh8 {[%emt 0:04:35]} 24. Red1 {[%emt 0:02:22]} Ba8 {[%emt 0:01:52]} 25. Bxh6 {[%emt 0:06:10]} Qc7 {[%emt 0:00:14]} 26. Be3 {[%emt 0:00:14]} Bc5 {[%emt 0:06:14]} 27. Bxc5 {[%emt 0:05:50]} Qxc5 {[%emt 0:00:13]} 28. Bd3 {[%emt 0:00:18]} Kg8 {[%emt 0:07:44]} 29. Bf1 {[%emt 0:00:29]} Kf8 {[%emt 0:02:05]} 30. Rd2 {[%emt 0:03:19]} Ke7 {[%emt 0:03:48]} 31. Rad1 {[%emt 0:00:22]} g6 {[%emt 0:01:24]} 32. Qc3 {[%emt 0:00:50]} Qc7 {[%emt 0:07:01]} 33. Rxd8 {[%emt 0:05:34]} Rxd8 {[%emt 0:00:04]} 34. Rxd8 {[%emt 0:00:08]} Qxd8 {[%emt 0:00:10]} 35. c5 {[%emt 0:00:11]} Bd5 {[%emt 0:03:17]} 36. Qb4 {[%emt 0:01:51]} Ke8 {[%emt 0:11:01]} 37. c6 {[%emt 0:00:43]} Qe7 {[%emt 0:01:55]} 38. Qd4 {[%emt 0:04:50]} Kd8 {[%emt 0:00:55]} 39. Qh8+ {[%emt 0:05:02]} Kc7 {[%emt 0:00:09]} 40. Qe5+ {[%emt 0:00:00]} Qd6 {[%emt 0:00:00]} 41. f4 {[%emt 0:01:25]} f6 {[%emt 0:04:11]} 42. Qxf6 {[%emt 0:00:29]} 1-0

[Event "World Senior chT-65 2019"]
[Site "Rhodes"]
[Date "2019.04.20"]
[Round "5.25"]
[White "Baruch, Andrew J D"]
[Black "Opl, Klaus"]
[Result "1/2-1/2"]
[ECO "A16"]
[WhiteElo "2039"]
[BlackElo "2188"]
[Annotator "NA"]
[PlyCount "51"]
[EventDate "2019.04.16"]
[EventType "team-tourn"]
[EventCountry "GRE"]
[SourceTitle "playchess.com"]
[Source "ChessBase"]
[SourceQuality "1"]
[WhiteTeam "England"]
[BlackTeam "Austria"]
[WhiteTeamCountry "ENG"]
[BlackTeamCountry "AUT"]
[TimeControl "40/5400+30:1800+30"]

1. c4 {[%emt 0:00:00]} Nf6 {[%emt 0:00:00]} 2. g3 {[%emt 0:00:00]} g6 {[%emt 0:00:34]} 3. Bg2 {[%emt 0:00:20]} Bg7 {[%emt 0:00:12]} 4. Nc3 {[%emt 0:00:05]} O-O {[%emt 0:00:30]} 5. Nf3 {[%emt 0:00:04]} d6 {[%emt 0:00:24]} 6. O-O {[%emt 0:00:08]} Nc6 {[%emt 0:00:39]} 7. d3 {[%emt 0:02:10]} Nh5 {[%emt 0:00:39]} 8. Rb1 {[%emt 0:04:15]} f5 {[%emt 0:00:19]} 9. Nd5 {[%emt 0:04:00]} e6 {[%emt 0:05:25]} 10. Bg5 {[%emt 0:01:00]} Qd7 {[%emt 0:00:18]} 11. Nf4 {[%emt 0:02:29]} Nxf4 {[%emt 0:00:47]} 12. Bxf4 {[%emt 0:00:05]} e5 {[%emt 0:03:43]} 13. Bd2 {[%emt 0:02:29]} f4 {[%emt 0:00:31]} 14. b4 {[%emt 0:00:58]} h6 {[%emt 0:02:06]} 15. b5 {[%emt 0:00:17]} Ne7 {[%emt 0:00:11]} 16. Qb3 {[%emt 0:00:59]} g5 {[%emt 0:08:28]} 17. Bc3 {[%emt 0:02:50]} Nf5 {[%emt 0:07:55]} 18. Nd2 {[%emt 0:07:28]} Kh8 {[%emt 0:04:05]} 19. c5 {[%emt 0:04:27]} dxc5 {[%emt 0:04:38]} 20. Ne4 {[%emt 0:00:31]} Qe7 {[%emt 0:04:04]} 21. Qc4 {[%emt 0:07:34]} Nd4 {[%emt 0:09:34]} 22. Bxd4 {[%emt 0:00:14]} cxd4 {[%emt 0:00:19]} 23. Rbc1 {[%emt 0:00:30]} Rf7 {[%emt 0:00:23]} 24. Nc5 {[%emt 0:00:29]} Rb8 {[%emt 0:00:52]} 25. Bd5 {[%emt 0:00:41]} Rf8 {[%emt 0:01:06]} 26. Ne6 {[%emt 0:05:47]} 1/2-1/2

[Event "World Senior chT-65 2019"]
[Site "Rhodes"]
[Date "2019.04.20"]
[Round "5.26"]
[White "Woeber, Friedrich"]
[Black "Reuben, Stewart"]
[Result "1-0"]
[ECO "B21"]
[WhiteElo "2114"]
[BlackElo "1974"]
[Annotator "NA"]
[PlyCount "117"]
[EventDate "2019.04.16"]
[EventType "team-tourn"]
[EventCountry "GRE"]
[SourceTitle "playchess.com"]
[Source "ChessBase"]
[SourceQuality "1"]
[WhiteTeam "Austria"]
[BlackTeam "England"]
[WhiteTeamCountry "AUT"]
[BlackTeamCountry "ENG"]
[TimeControl "40/5400+30:1800+30"]

1. e4 {[%emt 0:00:17]} c5 {[%emt 0:00:00]} 2. d4 {[%emt 0:00:39]} cxd4 {[%emt 0:00:55]} 3. c3 {[%emt 0:00:11]} d3 {[%emt 0:00:19]} 4. c4 {[%emt 0:01:04]} Nc6 {[%emt 0:02:09]} 5. Bxd3 {[%emt 0:00:39]} g6 {[%emt 0:02:53]} 6. Be3 {[%emt 0:02:54]} Bg7 {[%emt 0:01:01]} 7. Qd2 {[%emt 0:01:05]} Qa5 {[%emt 0:07:06]} 8. Nc3 {[%emt 0:00:33]} d6 {[%emt 0:07:08]} 9. Rc1 {[%emt 0:20:38]} Be6 {[%emt 0:09:40]} 10. Nf3 {[%emt 0:09:45]} Rc8 {[%emt 0:02:52]} 11. b3 {[%emt 0:03:06]} Ne5 {[%emt 0:05:40]} 12. Nxe5 {[%emt 0:00:23]} Bxe5 {[%emt 0:01:44]} 13. O-O {[%emt 0:03:38]} Nf6 {[%emt 0:20:16]} 14. f4 {[%emt 0:20:33]} Bxc3 {[%emt 0:00:20]} 15. Qxc3 {[%emt 0:04:17]} Qxc3 {[%emt 0:00:38]} 16. Rxc3 {[%emt 0:00:03]} b6 {[%emt 0:18:27]} 17. Bd4 {[%emt 0:09:19]} O-O {[%emt 0:03:10]} 18. Bxf6 {[%emt 0:09:24]} exf6 {[%emt 0:00:02]} 19. Rc2 {[%emt 0:00:28]} Bd7 {[%emt 0:02:53]} 20. Kf2 {[%emt 0:02:52]} Bc6 {[%emt 0:01:08]} 21. Ke3 {[%emt 0:00:02]} Rfe8 {[%emt 0:02:10]} 22. Kd4 {[%emt 0:02:10]} Re7 {[%emt 0:01:15]} 23. Re2 {[%emt 0:01:07]} Rce8 {[%emt 0:01:02]} 24. Rfe1 {[%emt 0:00:59]} Kf8 {[%emt 0:02:00]} 25. g3 {[%emt 0:00:03]} h6 {[%emt 0:00:19]} 26. h4 {[%emt 0:00:11]} Kg7 {[%emt 0:00:23]} 27. a4 {[%emt 0:00:37]} Rd8 {[%emt 0:01:40]} 28. a5 {[%emt 0:00:28]} Rb8 {[%emt 0:00:23]} 29. Kc3 {[%emt 0:01:56]} Reb7 {[%emt 0:03:36]} 30. axb6 {[%emt 0:00:38]} Rxb6 {[%emt 0:00:09]} 31. Bc2 {[%emt 0:00:03]} a5 {[%emt 0:00:30]} 32. Rd2 {[%emt 0:00:46]} Be8 {[%emt 0:01:29]} 33. Red1 {[%emt 0:00:39]} a4 {[%emt 0:00:27]} 34. bxa4 {[%emt 0:00:25]} Ra8 {[%emt 0:00:38]} 35. Rxd6 {[%emt 0:00:46]} Rxd6 {[%emt 0:00:11]} 36. Rxd6 {[%emt 0:00:02]} Bxa4 {[%emt 0:00:21]} 37. Bxa4 {[%emt 0:01:04]} Rxa4 {[%emt 0:00:01]} 38. Kb3 {[%emt 0:00:28]} Ra1 {[%emt 0:00:14]} 39. c5 {[%emt 0:01:59]} Rc1 {[%emt 0:01:13]} 40. Kb4 {[%emt 0:00:00]} Re1 {[%emt 0:00:00]} 41. Rd4 {[%emt 0:02:05]} Kf8 {[%emt 0:05:10]} 42. c6 {[%emt 0:01:23]} Ke7 {[%emt 0:02:03]} 43. Kc5 {[%emt 0:01:28]} h5 {[%emt 0:04:11]} 44. Kb5 {[%emt 0:09:17]} Rc1 {[%emt 0:10:21]} 45. Rd5 {[%emt 0:01:32]} Rb1+ {[%emt 0:02:48]} 46. Ka6 {[%emt 0:01:41]} Ra1+ {[%emt 0:08:54]} 47. Kb6 {[%emt 0:00:21]} Rb1+ {[%emt 0:00:25]} 48. Rb5 {[%emt 0:00:14]} Rc1 {[%emt 0:00:47]} 49. Kb7 {[%emt 0:00:15]} Kd8 {[%emt 0:01:13]} 50. Rd5+ {[%emt 0:00:15]} Ke7 {[%emt 0:00:02]} 51. c7 {[%emt 0:00:42]} Rb1+ {[%emt 0:00:04]} 52. Kc6 {[%emt 0:00:13]} Rc1+ {[%emt 0:00:12]} 53. Rc5 {[%emt 0:00:09]} Rxc5+ {[%emt 0:00:10]} 54. Kxc5 {[%emt 0:00:15]} Kd7 {[%emt 0:00:04]} 55. Kb6 {[%emt 0:00:51]} Kc8 {[%emt 0:00:01]} 56. Kc6 {[%emt 0:00:10]} f5 {[%emt 0:00:58]} 57. exf5 {[%emt 0:01:25]} gxf5 {[%emt 0:00:09]} 58. Kd6 {[%emt 0:00:03]} f6 {[%emt 0:00:39]} 59. Ke6 {[%emt 0:00:14]} 1-0

[Event "World Senior chT-65 2019"]
[Site "Rhodes"]
[Date "2019.04.20"]
[Round "5.27"]
[White "Valentine, Brian J"]
[Black "Titz, Heimo"]
[Result "1-0"]
[ECO "B47"]
[WhiteElo "1954"]
[BlackElo "2096"]
[Annotator "NA"]
[PlyCount "61"]
[EventDate "2019.04.16"]
[EventType "team-tourn"]
[EventCountry "GRE"]
[SourceTitle "playchess.com"]
[Source "ChessBase"]
[SourceQuality "1"]
[WhiteTeam "England"]
[BlackTeam "Austria"]
[WhiteTeamCountry "ENG"]
[BlackTeamCountry "AUT"]
[TimeControl "40/5400+30:1800+30"]

1. e4 {[%emt 0:00:00]} c5 {[%emt 0:00:00]} 2. Nf3 {[%emt 0:00:00]} e6 {[%emt 0:00:02]} 3. d4 {[%emt 0:00:14]} cxd4 {[%emt 0:00:07]} 4. Nxd4 {[%emt 0:00:03]} Nc6 {[%emt 0:00:27]} 5. Nc3 {[%emt 0:01:05]} Qc7 {[%emt 0:00:40]} 6. g3 {[%emt 0:00:12]} d6 {[%emt 0:05:09]} 7. Bg2 {[%emt 0:01:14]} Bd7 {[%emt 0:00:36]} 8. O-O {[%emt 0:00:42]} Be7 {[%emt 0:01:16]} 9. Nxc6 {[%emt 0:09:06]} Bxc6 {[%emt 0:00:27]} 10. Be3 {[%emt 0:00:43]} Nf6 {[%emt 0:00:38]} 11. Qe2 {[%emt 0:02:21]} O-O {[%emt 0:00:39]} 12. Rad1 {[%emt 0:02:05]} Rfd8 {[%emt 0:02:02]} 13. f4 {[%emt 0:06:27]} b6 {[%emt 0:22:11]} 14. Bd4 {[%emt 0:04:39]} e5 {[%emt 0:09:53]} 15. Be3 {[%emt 0:00:19]} Rac8 {[%emt 0:15:10]} 16. Rd2 {[%emt 0:02:47]} Qb7 {[%emt 0:10:37]} 17. Nd5 {[%emt 0:01:18]} Nxd5 {[%emt 0:00:32]} 18. exd5 {[%emt 0:00:17]} Be8 {[%emt 0:00:41]} 19. fxe5 {[%emt 0:02:11]} Qb8 {[%emt 0:01:04]} 20. Bf4 {[%emt 0:07:29]} dxe5 {[%emt 0:02:10]} 21. Bxe5 {[%emt 0:00:51]} Bd6 {[%emt 0:00:40]} 22. Bd4 {[%emt 0:02:02]} Bd7 {[%emt 0:01:19]} 23. Qh5 {[%emt 0:05:21]} g6 {[%emt 0:02:05]} 24. Qg5 {[%emt 0:08:39]} Bc5 {[%emt 0:01:47]} 25. Qf6 {[%emt 0:03:25]} Bxd4+ {[%emt 0:00:08]} 26. Rxd4 {[%emt 0:00:06]} Be8 {[%emt 0:01:58]} 27. c3 {[%emt 0:00:49]} Rd6 {[%emt 0:01:14]} 28. Qf4 {[%emt 0:03:35]} Qc7 {[%emt 0:01:10]} 29. Re1 {[%emt 0:08:26]} Qd8 {[%emt 0:10:50]} 30. Rde4 {[%emt 0:03:14]} Bb5 {[%emt 0:03:28]} 31. Re7 {[%emt 0:00:35]} 1-0

[Event "World Senior chT-65 2019"]
[Site "Rhodes"]
[Date "2019.04.20"]
[Round "5.28"]
[White "Danner, Lambert"]
[Black "Thynne, Trefor F"]
[Result "1-0"]
[ECO "A11"]
[WhiteElo "2013"]
[BlackElo "1907"]
[Annotator "NA"]
[PlyCount "83"]
[EventDate "2019.04.16"]
[EventType "team-tourn"]
[EventCountry "GRE"]
[SourceTitle "playchess.com"]
[Source "ChessBase"]
[SourceQuality "1"]
[WhiteTeam "Austria"]
[BlackTeam "England"]
[WhiteTeamCountry "AUT"]
[BlackTeamCountry "ENG"]
[TimeControl "40/5400+30:1800+30"]

1. g3 {[%emt 0:00:00]} d5 {[%emt 0:00:00]} 2. c4 {[%emt 0:00:00]} c6 {[%emt 0:00:00]} 3. Nf3 {[%emt 0:00:00]} Nf6 {[%emt 0:00:06]} 4. Bg2 {[%emt 0:00:10]} Bf5 {[%emt 0:01:29]} 5. Qb3 {[%emt 0:01:38]} Qb6 {[%emt 0:02:16]} 6. cxd5 {[%emt 0:02:46]} Qxb3 {[%emt 0:04:24]} 7. axb3 {[%emt 0:00:09]} Bxb1 {[%emt 0:03:47]} 8. dxc6 {[%emt 0:00:35]} Nxc6 {[%emt 0:13:23]} 9. Rxb1 {[%emt 0:00:11]} e6 {[%emt 0:00:30]} 10. d3 {[%emt 0:02:40]} Bc5 {[%emt 0:07:28]} 11. Bd2 {[%emt 0:02:25]} Ke7 {[%emt 0:05:22]} 12. e3 {[%emt 0:01:27]} Rhc8 {[%emt 0:04:16]} 13. Ke2 {[%emt 0:02:18]} h6 {[%emt 0:12:18]} 14. Rhc1 {[%emt 0:04:09]} Bd6 {[%emt 0:03:49]} 15. Rc4 {[%emt 0:02:45]} Nd5 {[%emt 0:04:13]} 16. Ne1 {[%emt 0:03:59]} Nb6 {[%emt 0:02:32]} 17. Rc2 {[%emt 0:00:49]} Nd8 {[%emt 0:03:56]} 18. Bc3 {[%emt 0:04:06]} f6 {[%emt 0:03:27]} 19. d4 {[%emt 0:00:33]} Rc7 {[%emt 0:05:42]} 20. Ra1 {[%emt 0:01:20]} Rcc8 {[%emt 0:09:20]} 21. Kd2 {[%emt 0:02:02]} Nc6 {[%emt 0:02:32]} 22. Nd3 {[%emt 0:00:39]} Rd8 {[%emt 0:00:46]} 23. Ba5 {[%emt 0:01:53]} Nxa5 {[%emt 0:00:49]} 24. Rxa5 {[%emt 0:00:08]} Rd7 {[%emt 0:00:19]} 25. Nc5 {[%emt 0:00:35]} Bxc5 {[%emt 0:01:01]} 26. Raxc5 {[%emt 0:00:13]} Rb8 {[%emt 0:03:56]} 27. Kd3 {[%emt 0:01:45]} Kd6 {[%emt 0:01:31]} 28. e4 {[%emt 0:00:59]} Ke7 {[%emt 0:00:52]} 29. Ke3 {[%emt 0:00:10]} Rbd8 {[%emt 0:00:21]} 30. Rd2 {[%emt 0:00:50]} Nc8 {[%emt 0:00:45]} 31. Bh3 {[%emt 0:01:55]} g6 {[%emt 0:00:38]} 32. Rdc2 {[%emt 0:02:17]} Nd6 {[%emt 0:00:32]} 33. d5 {[%emt 0:00:45]} f5 {[%emt 0:00:25]} 34. e5 {[%emt 0:01:32]} Ne4 {[%emt 0:00:29]} 35. d6+ {[%emt 0:00:15]} Ke8 {[%emt 0:02:16]} 36. R5c4 {[%emt 0:02:19]} Ng5 {[%emt 0:00:00]} 37. Bg2 {[%emt 0:00:11]} Nf7 {[%emt 0:00:00]} 38. f4 {[%emt 0:00:09]} Rb8 {[%emt 0:00:00]} 39. Rc7 {[%emt 0:04:04]} Nd8 {[%emt 0:02:37]} 40. Rxd7 {[%emt 0:00:00]} Kxd7 {[%emt 0:00:00]} 41. Rc7+ {[%emt 0:00:00]} Ke8 {[%emt 0:00:07]} 42. d7+ {[%emt 0:00:00] Ra8 [%emt 00:01:12] Ke4+ [%emt 00:00:06]} 1-0

[Event "World Senior chT-65 2019"]
[Site "Rhodes"]
[Date "2019.04.20"]
[Round "5.29"]
[White "Carlsson, Ingvar"]
[Black "Boehnisch, Manfred"]
[Result "0-1"]
[ECO "B12"]
[WhiteElo "2119"]
[BlackElo "2287"]
[Annotator "NA"]
[PlyCount "102"]
[EventDate "2019.04.16"]
[EventType "team-tourn"]
[EventCountry "GRE"]
[SourceTitle "playchess.com"]
[Source "ChessBase"]
[SourceQuality "1"]
[WhiteTeam "Sweden"]
[BlackTeam "Germany"]
[WhiteTeamCountry "SWE"]
[BlackTeamCountry "GER"]
[TimeControl "40/5400+30:1800+30"]

1. e4 {[%emt 0:00:00]} c6 {[%emt 0:00:00]} 2. d4 {[%emt 0:00:00]} d5 {[%emt 0:00:00]} 3. f3 {[%emt 0:00:00]} e6 {[%emt 0:02:02]} 4. Nc3 {[%emt 0:00:24]} Qb6 {[%emt 0:00:20]} 5. a3 {[%emt 0:15:14]} Nf6 {[%emt 0:22:15]} 6. Bg5 {[%emt 0:45:57]} c5 {[%emt 0:12:27]} 7. Bb5+ {[%emt 0:07:30]} Bd7 {[%emt 0:02:24]} 8. Bxd7+ {[%emt 0:01:49]} Nbxd7 {[%emt 0:01:39]} 9. Nge2 {[%emt 0:01:51]} cxd4 {[%emt 0:05:01]} 10. Nxd4 {[%emt 0:03:45]} dxe4 {[%emt 0:14:32]} 11. fxe4 {[%emt 0:04:36]} Rd8 {[%emt 0:00:36]} 12. Nb3 {[%emt 0:02:04]} Nc5 {[%emt 0:10:48]} 13. Qe2 {[%emt 0:00:14]} Nxb3 {[%emt 0:00:35]} 14. cxb3 {[%emt 0:00:14]} Be7 {[%emt 0:00:30]} 15. b4 {[%emt 0:05:27]} a6 {[%emt 0:00:36]} 16. Be3 {[%emt 0:00:56]} Qc6 {[%emt 0:03:24]} 17. Bf2 {[%emt 0:00:12]} Nd7 {[%emt 0:01:39]} 18. O-O {[%emt 0:00:49]} Ne5 {[%emt 0:01:07]} 19. Bg3 {[%emt 0:00:14]} Bf6 {[%emt 0:02:07]} 20. Qh5 {[%emt 0:02:55]} Ng6 {[%emt 0:01:10]} 21. e5 {[%emt 0:02:07]} Be7 {[%emt 0:00:19]} 22. Qe2 {[%emt 0:00:56]} O-O {[%emt 0:00:56]} 23. Kh1 {[%emt 0:01:26]} Rd4 {[%emt 0:02:57]} 24. Rf2 {[%emt 0:00:49]} Rfd8 {[%emt 0:01:37]} 25. Raf1 {[%emt 0:00:06]} Nh8 {[%emt 0:01:04]} 26. b5 {[%emt 0:01:22]} axb5 {[%emt 0:01:22]} 27. Qxb5 {[%emt 0:00:25]} Qxb5 {[%emt 0:01:06]} 28. Nxb5 {[%emt 0:00:01]} Rd3 {[%emt 0:00:15]} 29. Nd6 {[%emt 0:01:19]} Bxd6 {[%emt 0:01:38]} 30. exd6 {[%emt 0:00:01]} f6 {[%emt 0:00:14]} 31. Rc2 {[%emt 0:00:14]} e5 {[%emt 0:01:44]} 32. Rc7 {[%emt 0:00:08]} b5 {[%emt 0:00:47]} 33. Rb7 {[%emt 0:00:32]} Rd5 {[%emt 0:00:39]} 34. Kg1 {[%emt 0:01:33]} Nf7 {[%emt 0:00:16]} 35. Be1 {[%emt 0:01:17]} Nxd6 {[%emt 0:00:11]} 36. Rb6 {[%emt 0:00:28]} Nc4 {[%emt 0:00:27]} 37. Rb7 {[%emt 0:00:31]} Nxb2 {[%emt 0:00:38]} 38. Ba5 {[%emt 0:00:08]} R8d7 {[%emt 0:01:06]} 39. Rb8+ {[%emt 0:00:09]} Kf7 {[%emt 0:00:11]} 40. Rb1 {[%emt 0:00:00]} Nc4 {[%emt 0:00:00]} 41. Bb4 {[%emt 0:01:15]} e4 {[%emt 0:02:38]} 42. Kf2 {[%emt 0:00:39]} e3+ {[%emt 0:02:49]} 43. Ke2 {[%emt 0:00:33]} Rf5 {[%emt 0:02:06]} 44. Rf1 {[%emt 0:00:34]} Rxf1 {[%emt 0:01:49]} 45. Kxf1 {[%emt 0:01:05]} Rd1+ {[%emt 0:00:49]} 46. Ke2 {[%emt 0:00:11]} Rg1 {[%emt 0:00:15]} 47. Rxb5 {[%emt 0:03:51]} Rxg2+ {[%emt 0:00:18]} 48. Kd3 {[%emt 0:00:32]} e2 {[%emt 0:08:07]} 49. Rb7+ {[%emt 0:06:54]} Kg6 {[%emt 0:01:48]} 50. Kxc4 {[%emt 0:03:44]} Rg4+ {[%emt 0:00:13]} 51. Kd3 {[%emt 0:00:08]} Rxb4 {[%emt 0:00:09] Kd4 [%emt 00:00:30]} 0-1